[Event "ETCC Open 2023"]
[Site "Budva"]
[Date "2023.11.11"]
[Round "1.48"]
[White "Wartiovaara, Oliver"]
[Black "Balog, Imre"]
[Result "0-1"]
[ECO "C11"]
[WhiteElo "2270"]
[BlackElo "2617"]
[Annotator "TA"]
[PlyCount "102"]
[EventDate "2023.11.10"]
[EventType "team-tourn"]
[EventCountry "MNE"]
[SourceTitle "playchess.com"]
[Source "ChessBase"]
[SourceQuality "1"]
[WhiteTeam "Finland"]
[BlackTeam "Hungary"]
[WhiteTeamCountry "FIN"]
[BlackTeamCountry "HUN"]
[TimeControl "40/5400+30:1800+30"]

{[%evp 16,102,21,15,18,0,0,1,0,0,32,-19,0,-92,0,-44,-36,-60,-67,-68,-47,-54,-44,-78,-83,-145,-109,-127,-125,-130,-50,-82,-43,-40,-43,-123,-120,-126,-122,-119,-120,-118,-122,-116,-120,-114,-108,-122,-132,-140,-140,-140,-143,-131,-131,-132,-120,-150,-145,-143,-156,-153,-148,-189,-168,-205,-216,-252,-247,-226,-202,-151,-155,-150,-186,-167,-159,-128,-159,-530,-500,-754,-746,-681,-671,-671,-631,-1138,-1067]} 1. e4 {[%emt 0:00:03]} e6 {[%emt 0:00:18]} 2. d4 {[%emt 0:00:06]} d5 {[%emt 0:00:05]} 3. Nc3 {[%emt 0:00:03]} Nf6 {[%emt 0:01:02]} 4. e5 {[%emt 0:00:12]} Nfd7 {[%emt 0:00:06]} 5. f4 {[%emt 0:00:02]} c5 {[%emt 0:01:44]} 6. Nf3 {[%emt 0:00:10]} Nc6 {[%emt 0:02:24]} 7. Be3 {[%emt 0:00:05]} a6 {[%emt 0:01:42]} 8. Qd2 {[%emt 0:00:11]} Be7 {[%emt 0:00:05]} 9. dxc5 {[%emt 0:02:16]} Nxc5 {[%emt 0:01:30] C11: French: Classical System: 4 e5 and 4 Bg5 dxe4.} 10. O-O-O {[%emt 0:01:09]} Qa5 {[%emt 0:13:23]} 11. Kb1 {[%emt 0:04:13]} Bd7 $5 {[%emt 0:11:50][%cal Bc8d7,Bd7e8,Be8h5,Bh5g6,Bg6f5][%mdl 4] [#] The position is equal. Exploring less charted territory.} 12. f5 $146 {[%emt 0:28:00][%cal Of5f6]} ({Predecessor:} 12. Bd3 b5 13. Ne2 Qc7 14. Ned4 Na5 15. Qe1 Nc4 16. Bc1 a5 17. f5 b4 18. fxe6 fxe6 {1-0 Abu Sufian,S (2236)-Reefat,B (2409) Joytu Sheikh Hasina Online op 2020 (5)}) 12... Rc8 {[%emt 0:23:20]} 13. fxe6 {[%emt 0:20:25]} (13. Bc4 $14) 13... fxe6 $11 {[%emt 0:01:06]} 14. Bg5 {[%emt 0:04:49] [#]} (14. Bc4 $11) 14... Qd8 {[%emt 0:01:10]} (14... Bxg5 $1 $17 15. Qxg5 O-O) 15. h4 {[%emt 0:03:28]} O-O {[%emt 0:01:38]} 16. Bd3 {[%emt 0:00:52]} Be8 {[%emt 0:00:47]} 17. Ne2 {[%emt 0:01:14]} Bh5 {[%emt 0:08:57]} 18. Qe3 {[%emt 0:02:24]} Nxd3 {[%emt 0:04:04]} 19. cxd3 {[%emt 0:00:11]} d4 {[%emt 0:00:37]} 20. Qe4 {[%emt 0:07:49]} ({White should play} 20. Qg1) 20... Bg6 {[%emt 0:01:59]} 21. Qg4 {[%emt 0:00:08]} Bf5 {[%emt 0:00:09] This pair of bishops is nice.} 22. Qg3 {[%emt 0:00:52]} Rf7 {[%emt 0:01:00]} (22... Bxg5 $17 23. Qxg5 Qxg5 24. hxg5 Bg4) 23. Nf4 {[%emt 0:01:10]} Qa5 {[%emt 0:00:20] [#] ...Bf8 is the strong threat.} 24. Bxe7 {[%emt 0:01:28]} Rxe7 $40 {[%emt 0:00:16][%mdl 128] Black is up to no good.} 25. Rc1 {[%emt 0:02:01]} (25. a3 $15) 25... Rec7 $17 {[%emt 0:01:04] White must now prevent ...Nb4.} 26. a3 {[%emt 0:04:32] Prevents Nb4.} Nxe5 {[%emt 0:05:44]} 27. Nxd4 {[%emt 0:10:54]} Rxc1+ {[%emt 0:03:04]} 28. Rxc1 {[%emt 0:00:04]} Rxc1+ {[%emt 0:00:05]} 29. Kxc1 {[%emt 0:00:01]} Qc5+ {[%emt 0:00:07]} 30. Nc2 {[%emt 0:00:03][%cal Of4e6]} Qd6 {[%emt 0:00:18][%cal Re5d3] Black has more active pieces.} 31. Ne1 {[%emt 0:00:54]} Ng6 {[%emt 0:09:09]} 32. Ne2 {[%emt 0:01:19]} Qxg3 {[%emt 0:00:05]} 33. Nxg3 {[%emt 0:00:02]} Nxh4 {[%emt 0:00:06][%mdl 4096] Endgame KBN-KNN} 34. Kd2 {[%emt 0:01:19]} Kf7 {[%emt 0:00:10]} 35. Ke3 {[%emt 0:00:11]} Ke7 {[%emt 0:01:16]} 36. Kf4 {[%emt 0:01:19]} Ng6+ {[%emt 0:00:21]} 37. Ke3 {[%emt 0:00:51]} Ne5 {[%emt 0:00:27]} 38. Kd4 {[%emt 0:00:51]} Kd6 {[%emt 0:01:51]} 39. Nh5 {[%emt 0:00:33]} g5 {[%emt 0:01:29]} 40. Nf6 {[%emt 0:01:16]} Ng4 {[%emt 0:00:27]} 41. Ne4+ {[%emt 0:32:22]} Bxe4 {[%emt 0:30:07]} 42. Kxe4 $19 {[%emt 0:00:26] KN-KN} Nf2+ {[%emt 0:00:36]} 43. Kf3 {[%emt 0:00:15]} Nd1 {[%emt 0:00:11]} 44. Kg4 {[%emt 0:00:46]} h6 {[%emt 0:00:22]} 45. Kh5 {[%emt 0:00:34]} Ke5 {[%emt 0:00:08]} ({Inferior is} 45... Nxb2 46. Kxh6 g4 47. Kh5 $11) 46. Kxh6 {[%emt 0:00:29]} Kf4 {[%emt 0:01:14][%cal Og5g4] Hoping for ...g4!} ({Of course not} 46... Nxb2 $6 47. Kxg5 Nd1 48. Nf3+ Kd5 49. g4 $11) 47. b4 $2 {[%emt 0:00:00] White does not recover from this.} (47. d4 $17 {is more resistant.}) 47... g4 {[%emt 0:00:00] aiming for ...Ne3. Black is clearly winning.} 48. Kh5 {[%emt 0:00:00]} (48. d4 $142 Ke3 49. Kh5) 48... Ne3 {[%emt 0:00:00]} 49. Kh4 {[%emt 0:00:00]} Nf5+ {[%emt 0:00:00]} 50. Kh5 {[%emt 0:00:00]} e5 {[%emt 0:00:00]} 51. Nc2 {[%emt 0:00:00]} Ne3 {[%emt 0:00:00] Weighted Error Value: White=0.39/Black=0.10 (very precise)} 0-1

[Event "ETCC Open 2023"]
[Site "Budva"]
[Date "2023.11.11"]
[Round "1.49"]
[White "Nikolovski, Nikola"]
[Black "Navara, David"]
[Result "0-1"]
[ECO "B23"]
[WhiteElo "2405"]
[BlackElo "2695"]
[Annotator "TA"]
[PlyCount "92"]
[EventDate "2023.11.10"]
[EventType "team-tourn"]
[EventCountry "MNE"]
[SourceTitle "playchess.com"]
[Source "ChessBase"]
[SourceQuality "1"]
[WhiteTeam "Macedonia"]
[BlackTeam "Czech Republic"]
[WhiteTeamCountry "MKD"]
[BlackTeamCountry "CZE"]
[TimeControl "40/5400+30:1800+30"]

{[%evp 9,91,0,0,0,8,-10,0,0,-2,-4,-7,-14,0,-7,0,-16,0,0,-8,-7,-10,-14,-16,-12,-10,-18,20,15,35,0,11,0,0,0,0,-47,-46,-47,37,29,49,0,154,-22,-22,-49,-67,-129,-69,-132,267,-92,121,0,0,-31,0,0,34,0,0,-48,-47,-47,-41,-59,-87,-144,-126,-390,-402,-383,-387,-1062,-1057,-29985,-29986,-29986,-29987,-29987,-29988,-29998,-29999,-29999]} 1. e4 {[%emt 0:00:08]} c5 {[%emt 0:00:01]} 2. Nc3 {[%emt 0:00:37]} d6 {[%emt 0:01:22]} 3. f4 {[%emt 0:00:22]} g6 {[%emt 0:00:07]} 4. Nf3 {[%emt 0:00:59]} Bg7 {[%emt 0:00:10]} 5. Bb5+ {[%emt 0:04:09]} Bd7 {[%emt 0:00:08]} 6. a4 {[%emt 0:00:58] B23: Closed Sicilian: Lines without g3.} Nc6 {[%emt 0:01:54]} 7. d3 {[%emt 0:01:00]} a6 {[%emt 0:03:30]} 8. Bxc6 {[%emt 0:00:29] The position is equal.} Bxc6 {[%emt 0:00:08]} 9. a5 {[%emt 0:00:14]} Nf6 {[%emt 0:07:19][%cal Bg8f6,Bf6d5,Bd5b4][%mdl 32]} 10. O-O {[%emt 0:01:28]} O-O {[%emt 0:00:28]} 11. Qe1 {[%emt 0:07:34]} e6 {[%emt 0:02:02]} 12. Kh1 {[%emt 0:04:37] [#]} Rc8 $146 {[%emt 0:06:05]} ({Predecessor:} 12... b5 13. axb6 Qxb6 14. Ra2 Nd7 15. Bd2 Rfe8 16. b3 Qb7 17. Qh4 f5 18. Raa1 Bf6 {1-0 Yermolenko,V (2261)-Barannikov,V (2071) Anapa op-B 2010 (5)}) 13. e5 {[%emt 0:08:27]} Nd5 {[%emt 0:02:58]} 14. Ne4 {[%emt 0:03:31]} Nb4 {[%emt 0:00:19]} 15. Qf2 {[%emt 0:15:20]} dxe5 {[%emt 0:07:19]} 16. fxe5 {[%emt 0:04:30] Hoping for Bg5.} Bxe4 {[%emt 0:00:09]} 17. dxe4 {[%emt 0:00:08]} f5 {[%emt 0:08:54]} 18. exf6 {[%emt 0:01:55]} Qxf6 {[%emt 0:01:17]} 19. Qe2 {[%emt 0:06:33]} c4 {[%emt 0:09:38]} 20. Rb1 {[%emt 0:10:37]} Qd8 {[%emt 0:01:11]} 21. Ra1 {[%emt 0:03:57]} Qd7 {[%emt 0:06:30]} 22. h4 {[%emt 0:07:52]} (22. Be3 $11) 22... Qb5 $15 {[%emt 0:02:32]} 23. Bg5 {[%emt 0:03:55]} Bxb2 {[%emt 0:20:50]} (23... Nc6 $15) 24. Rab1 $14 {[%emt 0:00:30]} c3 {[%emt 0:00:04]} 25. Qf2 {[%emt 0:04:14]} (25. Qxb5 axb5 26. Bc1 Nxc2 27. Bxb2 cxb2 28. Rxb2 Ne3 $11) (25. Qd1 $1 $14 Qxa5 26. Be7) 25... Qxa5 $2 {[%emt 0:03:53]} (25... Rf7 $1 $11) 26. Rbd1 $2 {[%emt 0:02:42]} (26. Bh6 $1 $16 Rf7 27. Qg1) 26... Qb5 $11 {[%emt 0:07:09]} 27. Bh6 {[%emt 0:04:19]} (27. h5 {is interesting.} h6 28. Be7 Qxh5+ 29. Kg1) 27... Rf7 {[%emt 0:00:21]} 28. Rd6 {[%emt 0:01:08]} (28. Qd4 $15 Nc6 29. Qg1) 28... Qh5 {[%emt 0:04:39]} (28... Nxc2 $2 29. Rfd1 $18) ({Black should try} 28... Nc6 $17 29. Rfd1 Qh5) 29. Be3 {[%emt 0:00:32]} (29. Bg5 $1 $15 h6 30. Be3) 29... Qg4 $2 {[%emt 0:00:27][%mdl 8192]} (29... Ba3 $17 {[%cal Ob4c2] ...Nxc2! would be deadly.} 30. Rxe6 Qg4) 30. Rfd1 $2 {[%emt 0:00:48] [#]} ({White has to play} 30. Rd7 $1 $18 {[%cal Rd7f7] Strongly threatening Rxf7.} Rxd7 31. Ne5) 30... Qxe4 $2 {[%emt 0:02:42] [#]} (30... Nc6 $1 $17 {keeps the pressure on. And now ...Ba3 would win.} 31. Rd7 Rc7) 31. Bh6 {[%emt 0:00:08]} ({White must play} 31. Rd8+ $1 $16 Rxd8 32. Rxd8+ Rf8 33. Rxf8+ Kxf8 34. Ng5+ Qf5 35. Qg3) 31... Nd5 {[%emt 0:00:56]} (31... Qxc2 $2 32. Rd8+ $18) 32. Qc5 {[%emt 0:02:07][%mdl 64] Deflection, Back Rank} Rff8 {[%emt 0:00:52]} (32... Rxc5 $2 {leads to mate.} 33. Rd8+) (32... Rfc7 $5 {[%cal Rc7c5]} 33. Qa5 Qc4 $17) 33. Qf2 {[%emt 0:00:34]} Ba3 {[%emt 0:00:34]} 34. Rd7 {[%emt 0:00:27]} Rf5 {[%emt 0:00:28] ...Bf8 is the strong threat.} 35. Rg7+ {[%emt 0:00:39]} (35. Rd4 $11 Rxf3 36. gxf3) 35... Kh8 $15 {[%emt 0:00:05]} 36. Rxb7 {[%emt 0:00:27] White wants to mate with Qa7.} Bf8 {[%emt 0:00:46]} 37. Bxf8 {[%emt 0:00:32]} Rcxf8 {[%emt 0:00:17]} ({But not} 37... Rfxf8 38. Re1 Qf4 39. Rxe6 $11) 38. Re1 {[%emt 0:00:30]} (38. Qa7 $142 Nf6 39. Re1) 38... Ne3 $1 $17 {[%emt 0:00:37][%cal Rf5f3][%mdl 64] aiming for ...Rxf3. Discovered Attack} 39. Qxe3 {[%emt 0:00:30][%mdl 8192]} (39. Rxh7+ $17 Kxh7 40. Rxe3) 39... Qxb7 $19 {[%emt 0:00:05]} 40. Qxc3+ {[%emt 0:00:28]} Kg8 {[%emt 0:00:53][%cal Rf5f3]} ({Avoid the trap} 40... Qg7 $2 41. Qc6 $19) 41. Rxe6 $2 {[%emt 0:30:16]} (41. Qe3) 41... Rxf3 {[%emt 0:30:47]} 42. gxf3 {[%emt 0:00:34]} Rxf3 {[%emt 0:00:18] KQR-KQR. Black mates.} 43. Qc6 {[%emt 0:00:00]} Qb1+ {[%emt 0:00:00]} 44. Kh2 {[%emt 0:00:00]} Rf2+ {[%emt 0:00:00]} 45. Kg3 {[%emt 0:00:00]} Qg1+ {[%emt 0:00:00]} 46. Kh3 {[%emt 0:00:00]} Rh2# {[%emt 0:00:00] Excellently played by Navara!   Weighted Error Value: White=0.58/Black=0.38} 0-1

[Event "ETCC Open 2023"]
[Site "Budva"]
[Date "2023.11.11"]
[Round "1.50"]
[White "Nguyen, Thai Dai Van"]
[Black "Pancevski, Filip"]
[Result "1-0"]
[ECO "C54"]
[WhiteElo "2624"]
[BlackElo "2441"]
[Annotator "TA"]
[PlyCount "137"]
[EventDate "2023.11.10"]
[EventType "team-tourn"]
[EventCountry "MNE"]
[SourceTitle "playchess.com"]
[Source "ChessBase"]
[SourceQuality "1"]
[WhiteTeam "Czech Republic"]
[BlackTeam "Macedonia"]
[WhiteTeamCountry "CZE"]
[BlackTeamCountry "MKD"]
[TimeControl "40/5400+30:1800+30"]

{[%evp 13,137,16,29,12,20,20,16,0,20,21,28,28,22,16,16,15,16,15,16,0,3,-8,0,0,0,0,0,0,0,0,0,0,0,0,0,0,0,0,0,0,0,0,0,0,0,0,6,0,0,0,84,79,77,79,83,84,81,75,87,84,77,83,77,61,76,11,114,95,187,177,183,186,198,195,272,283,276,277,260,251,253,229,236,233,326,289,315,298,302,242,234,202,214,220,217,213,257,251,513,277,306,306,488,0,277,240,418,204,412,403,378,387,494,491,494,489,548,490,2065,445,1890,1826,1453,1381,1243,999]} 1. e4 {[%emt 0:00:10]} e5 {[%emt 0:00:05]} 2. Nf3 {[%emt 0:00:07]} Nc6 {[%emt 0:00:07]} 3. Bc4 {[%emt 0:01:32]} Bc5 {[%emt 0:00:25]} 4. O-O {[%emt 0:00:15]} Nf6 {[%emt 0:00:06]} 5. d3 {[%emt 0:00:09]} d6 {[%emt 0:00:41]} 6. c3 {[%emt 0:00:15]} a6 {[%emt 0:00:05]} 7. a4 $1 {[%emt 0:00:08][%mdl 4] is currently scoring better than 7.Bb3.} O-O {[%emt 0:00:26]} 8. h3 {[%emt 0:03:01] C54: Giuoco Piano: 4 c3 Nf6, main lines with 5 d4 and 5 d3.} h6 {[%emt 0:00:16]} 9. Re1 {[%emt 0:02:20]} Ba7 {[%emt 0:00:37]} 10. Nbd2 {[%emt 0:00:15] The position is equal.} Re8 {[%emt 0:00:19]} 11. b4 {[%emt 0:00:44][%cal Bb2b4,Bb4b5][%mdl 32]} Be6 {[%emt 0:00:10]} 12. Bxe6 {[%emt 0:02:28]} Rxe6 {[%emt 0:00:02]} 13. Qc2 {[%emt 0:00:46]} Qd7 {[%emt 0:00:21]} 14. Nf1 {[%emt 0:00:53]} d5 {[%emt 0:03:25]} 15. Bd2 $5 {[%emt 0:01:53][%mdl 4] A promising side line.} Rd8 {[%emt 0:13:53]} 16. b5 {[%emt 0:22:58]} Ne7 {[%emt 0:01:28]} 17. c4 {[%emt 0:01:39]} dxe4 {[%emt 0:04:34]} 18. dxe4 {[%emt 0:00:02]} Qd3 {[%emt 0:06:55] [#] Against Be3} 19. Rac1 $146 {[%emt 0:05:44]} ({Predecessor:} 19. Qxd3 Rxd3 20. Be3 Bd4 21. Bxd4 exd4 22. e5 Nd7 23. Rad1 Rxd1 24. Rxd1 c5 25. bxc6 Nxc6 26. Nxd4 Nxd4 27. Rxd4 Nxe5 {1-0 Petrov,M (2504)-Mohammad Fahad,R (2319) Online Olym Div2 A rapid 2020 (5.5)}) 19... Qxc2 {[%emt 0:18:00]} 20. Rxc2 {[%emt 0:00:47]} Bc5 {[%emt 0:00:07]} 21. Bc3 {[%emt 0:03:13]} Ng6 {[%emt 0:01:18]} 22. N1d2 {[%emt 0:03:55]} Ra8 {[%emt 0:07:48]} 23. a5 {[%emt 0:16:03]} b6 {[%emt 0:09:05]} 24. Nb3 {[%emt 0:01:26]} Bf8 {[%emt 0:02:59]} 25. axb6 {[%emt 0:08:07]} axb5 {[%emt 0:00:27][%cal Ba6b5,Bb5b4][%mdl 32]} 26. bxc7 {[%emt 0:04:43]} (26. b7 Rb8 $15) 26... b4 {[%emt 0:22:43]} 27. Bd2 {[%emt 0:00:15]} Rc6 {[%emt 0:00:13]} 28. c5 {[%emt 0:00:12]} Rxc7 {[%emt 0:04:59]} 29. Rc4 {[%emt 0:00:05]} (29. Bxb4 $2 Rb7 30. Rc4 Ra4 $19) 29... Ra4 {[%emt 0:01:28]} 30. Rec1 {[%emt 0:03:48][%cal Be1c1,Bc1c4,Bc4a4,Ba4a8][%mdl 32]} (30. Rxb4 $2 {perishes.} Rxb4 31. Bxb4 Rb7 $19) (30. Bxb4 $2 Rb7 31. Nfd2 Rbxb4 $19) 30... Nd7 {[%emt 0:01:26]} 31. Bxb4 {[%emt 0:06:39]} Nb8 {[%emt 0:00:45]} (31... Nf4 $11 {remains equal.} 32. R1c2 Ne6) 32. Ba5 $16 {[%emt 0:01:17][%cal Bb4a5,Ba5d2,Bd2e3][%mdl 32]} Rxc4 {[%emt 0:00:08]} 33. Rxc4 {[%emt 0:00:19]} ({But not} 33. Bxc7 Rxc1+ 34. Nxc1 Na6 $11) 33... Rc8 {[%emt 0:00:49]} 34. g3 {[%emt 0:03:02]} f6 {[%emt 0:00:32]} 35. Bd2 {[%emt 0:03:29]} Ne7 {[%emt 0:00:20]} 36. Ra4 {[%emt 0:00:41]} Nd7 {[%emt 0:00:25] [#]} 37. Be3 $1 {[%emt 0:00:13]} Nc6 {[%emt 0:00:12] Prevents Ra7.} 38. Nfd2 {[%emt 0:01:04]} Kf7 {[%emt 0:01:00]} 39. Nc4 {[%emt 0:00:41]} (39. Kg2 $16) 39... Rc7 {[%emt 0:00:45]} (39... Rb8 $11 40. Ncd2 Rb7) 40. Nb6 {[%emt 0:01:05] White is more active.} Ncb8 {[%emt 0:00:33]} (40... Rb7 $16) 41. Ra8 $36 {[%emt 0:34:37][%mdl 2048] White is on the roll.} Nc6 {[%emt 0:08:23]} 42. Kf1 {[%emt 0:00:00]} Be7 {[%emt 0:05:30]} 43. Nd5 {[%emt 0:00:00] Wards off Nb4} Rb7 {[%emt 0:01:27]} (43... Ra7 $142 44. Rxa7 Nxa7) 44. Na5 {[%emt 0:00:00]} Nxa5 {[%emt 0:10:22]} 45. Rxa5 {[%emt 0:00:00] [#] Strongly threatening c6.} Nb8 {[%emt 0:00:05]} 46. Ke2 {[%emt 0:00:00]} Ke6 {[%emt 0:00:06]} 47. Kd3 {[%emt 0:00:00]} Bd8 {[%emt 0:00:06]} 48. Ra8 {[%emt 0:00:00]} f5 {[%emt 0:00:32]} 49. Kc4 {[%emt 0:00:00]} fxe4 {[%emt 0:00:44]} 50. Nb6 {[%emt 0:02:48] And now Kb5 would win.} Nc6 {[%emt 0:02:14]} 51. Kb5 {[%emt 0:00:02]} Rc7 {[%emt 0:00:10]} 52. Ra6 {[%emt 0:00:23]} Nb8 {[%emt 0:02:32]} 53. Ra4 {[%emt 0:00:39]} Nc6 {[%emt 0:01:15]} 54. Rxe4 {[%emt 0:00:18]} Be7 {[%emt 0:00:05]} 55. Ra4 {[%emt 0:01:20] Hoping for Na8.} h5 $2 {[%emt 0:02:58]} (55... Bd8 56. f4 Na7+ 57. Kc4 exf4) 56. Ra6 {[%emt 0:00:42] Na8 is the strong threat.} Nb8 {[%emt 0:00:07]} 57. Ra2 {[%emt 0:00:53]} Nc6 {[%emt 0:00:10]} (57... g5 {is a better defense.} 58. Kc4 g4 59. hxg4 hxg4) 58. Ra6 {[%emt 0:00:07]} (58. Na8 $142 Ra7 59. Rxa7 Nxa7+ 60. Kb6 Nc8+ 61. Kb7 Nd6+ 62. cxd6 Kxd6 63. h4) 58... Nb8 $1 {[%emt 0:00:02]} 59. Ra1 {[%emt 0:00:46]} Nc6 $2 {[%emt 0:00:01]} (59... h4 {might work better.} 60. g4 g5) 60. Kc4 {[%emt 0:00:30]} (60. Na8 $142 Ra7 61. Rxa7 Nxa7+ 62. Kb6 Nc8+ 63. Kc7) 60... Kf5 $2 {[%emt 0:03:11]} (60... Nd4 {was called for.}) 61. Nd5 {[%emt 0:00:27]} Rc8 {[%emt 0:00:08]} 62. Ra6 {[%emt 0:00:44][%cal Oa6c6] Threatens to win with Rxc6!} Bf8 {[%emt 0:00:29]} 63. f3 {[%emt 0:00:23][%cal Bf2f3,Bf3f4][%mdl 32] Black must now prevent Nb4. White is clearly winning.} e4 {[%emt 0:00:44]} 64. g4+ {[%emt 0:00:24]} hxg4 {[%emt 0:00:07]} 65. hxg4+ {[%emt 0:00:10]} Ke5 {[%emt 0:00:32]} (65... Ke6 $142 66. fxe4 Ke5) 66. f4+ {[%emt 0:00:55]} Ke6 {[%emt 0:00:02]} 67. Nb4 {[%emt 0:00:08]} Kd7 {[%emt 0:00:01]} 68. Nxc6 {[%emt 0:00:22]} Rxc6 {[%emt 0:00:01]} 69. Ra8 {[%emt 0:00:35] Weighted Error Value: White=0.23 (precise) /Black=0.26 (precise)} 1-0

[Event "ETCC Open 2023"]
[Site "Budva"]
[Date "2023.11.11"]
[Round "1.51"]
[White "Lazov, Toni"]
[Black "Zilka, Stepan"]
[Result "1/2-1/2"]
[ECO "B23"]
[WhiteElo "2377"]
[BlackElo "2609"]
[Annotator "TA"]
[PlyCount "90"]
[EventDate "2023.11.10"]
[EventType "team-tourn"]
[EventCountry "MNE"]
[SourceTitle "playchess.com"]
[Source "ChessBase"]
[SourceQuality "1"]
[WhiteTeam "Macedonia"]
[BlackTeam "Czech Republic"]
[WhiteTeamCountry "MKD"]
[BlackTeamCountry "CZE"]
[TimeControl "40/5400+30:1800+30"]

{[%evp 11,90,0,2,0,0,-24,-20,-16,-27,-31,-19,-37,-16,-31,-33,-48,-39,-35,-43,-41,-27,-41,-11,-32,40,41,46,38,42,36,45,50,49,42,43,41,59,39,43,37,52,0,0,0,0,0,0,0,0,0,0,0,0,0,0,0,0,0,0,0,0,0,0,0,0,0,0,0,0,0,0,0,0,0,0,0,0,0,0,0,0]} 1. e4 {[%emt 0:00:05]} c5 {[%emt 0:00:09]} 2. Nc3 {[%emt 0:01:06]} d6 {[%emt 0:00:23]} 3. f4 {[%emt 0:00:18]} Nc6 {[%emt 0:02:03]} 4. Nf3 {[%emt 0:00:41]} g6 {[%emt 0:00:34]} 5. Bb5 {[%emt 0:04:52]} Bd7 {[%emt 0:05:03]} 6. O-O {[%emt 0:01:29]} Bg7 {[%emt 0:01:27]} 7. a4 {[%emt 0:07:06][%cal Oa4a5] B23: Closed Sicilian: Lines without g3.} e6 {[%emt 0:02:18] [#] 7...a6 is more advanced technology.} 8. Be2 $146 {[%emt 0:14:24]} ({Predecessor:} 8. Bxc6 Bxc6 9. d4 cxd4 10. Nxd4 Nf6 11. Qd3 O-O 12. h3 Qe7 13. Be3 a6 14. Rad1 {0-1 Sosa,T (2544)-Aryan,C (2607) Menorca op 2nd 2023 (9)}) 8... Nge7 {[%emt 0:04:46]} 9. Nb5 {[%emt 0:04:29][%cal Bc3b5,Bb5a3,Ba3c2,Bc2a1][%mdl 32]} Qb8 {[%emt 0:05:13]} 10. c3 {[%emt 0:00:23]} a6 {[%emt 0:01:23][%cal Ba7a6,Ba6b5,Bb5b4][%mdl 32]} 11. Na3 {[%emt 0:00:02] [#]} b5 $1 {[%emt 0:03:46]} 12. d4 {[%emt 0:13:16]} (12. Nc2 b4) 12... cxd4 {[%emt 0:06:42]} 13. axb5 {[%emt 0:00:13]} axb5 {[%emt 0:00:07]} 14. cxd4 {[%emt 0:00:05]} b4 {[%emt 0:03:07]} 15. Nc2 {[%emt 0:00:02]} Rxa1 {[%emt 0:02:02]} 16. Nxa1 {[%emt 0:00:04]} Qa7 {[%emt 0:03:38]} 17. Nb3 {[%emt 0:03:30]} e5 {[%emt 0:02:15]} (17... O-O $15) 18. Be3 $14 {[%emt 0:05:47] And now fxe5 would win.} O-O {[%emt 0:07:57]} 19. Bf2 {[%emt 0:02:28]} exd4 {[%emt 0:02:17]} (19... exf4 $2 20. d5 Qa2 21. dxc6 Bxc6 22. Bc4 $18 (22. Qxd6 Qxb3 23. Qxe7 Qxb2 $18)) 20. Nbxd4 {[%emt 0:02:10]} Nxd4 {[%emt 0:02:17]} 21. Bxd4 {[%emt 0:01:24]} Bxd4+ {[%emt 0:00:24]} 22. Qxd4 {[%emt 0:00:02]} Qxd4+ {[%emt 0:07:39]} 23. Nxd4 {[%emt 0:00:02]} d5 {[%emt 0:00:09]} 24. e5 {[%emt 0:04:05]} Nf5 {[%emt 0:00:28]} 25. Rd1 {[%emt 0:03:08]} Rc8 {[%emt 0:00:36]} 26. Nxf5 {[%emt 0:21:49]} (26. Nb3 $14) 26... Bxf5 $11 {[%emt 0:00:09] The position is equal.} 27. Rxd5 $14 {[%emt 0:00:04][%mdl 4096] Endgame KRB-KRB} Rc2 {[%emt 0:00:37][%csl LRb2,LRe2]} 28. Bd3 {[%emt 0:00:57]} Rxb2 {[%emt 0:03:30]} 29. Bxf5 {[%emt 0:02:37]} gxf5 $11 {[%emt 0:00:06] KR-KR} 30. h3 {[%emt 0:02:04]} b3 {[%emt 0:01:48]} 31. Rb5 {[%emt 0:00:54]} h5 {[%emt 0:00:42]} 32. g4 {[%emt 0:03:26]} hxg4 {[%emt 0:02:24]} 33. hxg4 {[%emt 0:00:01]} fxg4 {[%emt 0:00:11]} 34. f5 {[%emt 0:00:14]} Kg7 {[%emt 0:06:18]} 35. Rb4 {[%emt 0:01:14]} Kh6 {[%emt 0:00:46] [#] aiming for ...Kg5.} 36. e6 $1 {[%emt 0:00:11]} fxe6 {[%emt 0:04:14]} 37. fxe6 {[%emt 0:00:02]} Kg7 {[%emt 0:00:11] Threatens to win with ...Kf6.} 38. Rxg4+ {[%emt 0:01:43]} Kf6 {[%emt 0:00:19]} (38... Kf8 $5 39. Rb4 $8 Kg7 $11) 39. Re4 {[%emt 0:01:00] e7 is the strong threat.} Ke7 {[%emt 0:00:43]} 40. Re3 {[%emt 0:00:21]} Rb1+ {[%emt 0:00:36]} 41. Kg2 {[%emt 0:30:29]} b2 {[%emt 0:30:14]} 42. Rb3 {[%emt 0:01:56]} Kxe6 {[%emt 0:00:06]} 43. Rb6+ {[%emt 0:00:33]} Kd5 {[%emt 0:00:05]} 44. Rb8 {[%emt 0:00:17]} Kc4 {[%emt 0:00:19]} 45. Rc8+ {[%emt 0:00:29]} Kb3 {[%emt 0:00:04] Weighted Error Value: White=0.04 (flawless) /Black=0.06 (flawless)} 1/2-1/2